fUSD/lending_fUSD_20250107
["ID","MTS","AMOUNT","RATE_DAILY","PERIOD"]
[347973019,1736256654417,-417.0,9.99e-05,2]
[347973020,1736256654427,-417.0,9.99e-05,2]
[347973021,1736256654436,-417.0,9.99e-05,2]
[347973022,1736256654445,-417.0,9.99e-05,2]
[347973023,1736256654455,-417.0,9.99e-05,2]
[347973024,1736256654464,-417.0,9.99e-05,2]
[347973025,1736256654473,-417.0,9.99e-05,2]
[347973026,1736256654483,-417.0,9.99e-05,2]
[347973027,1736256654492,-417.0,9.99e-05,2]
[347973028,1736256654501,-417.0,9.99e-05,2]
[347973029,1736256654511,-417.0,9.99e-05,2]
[347973030,1736256654520,-417.0,9.99e-05,2]
[347973031,1736256654532,-280.0,9.996e-05,2]
[347973032,1736256654542,-280.0,9.996e-05,2]
[347973033,1736256654551,-280.0,9.996e-05,2]
[347973034,1736256654560,-280.0,9.996e-05,2]
[347973035,1736256654570,-280.0,9.996e-05,2]
[347973036,1736256654579,-280.0,9.996e-05,2]
[347973037,1736256654588,-280.0,9.996e-05,2]
[347973038,1736256654598,-280.0,9.996e-05,2]
[347973039,1736256654607,-280.0,9.996e-05,2]
[347973040,1736256654616,-280.0,9.996e-05,2]
[347973041,1736256654626,-280.0,9.996e-05,2]
[347973042,1736256654635,-280.0,9.996e-05,2]
[347973043,1736256654645,-280.0,9.996e-05,2]
[347973044,1736256654654,-280.0,9.996e-05,2]
[347973045,1736256654663,-417.0,9.999e-05,2]
[347973046,1736256654673,-417.0,9.999e-05,2]
[347973047,1736256654682,-417.0,9.999e-05,2]
[347973048,1736256654691,-417.0,9.999e-05,2]
[347973049,1736256654701,-417.0,9.999e-05,2]
[347973050,1736256654710,-417.0,9.999e-05,2]
[347973051,1736256654719,-417.0,9.999e-05,2]
[347973052,1736256654728,-417.0,9.999e-05,2]
[347973053,1736256654738,-417.0,9.999e-05,2]
[347973054,1736256654747,-417.0,9.999e-05,2]
[347973055,1736256654756,-417.0,9.999e-05,2]
[347973056,1736256654765,-417.0,9.999e-05,2]
[347973057,1736256654775,-417.0,9.999e-05,2]
[347973058,1736256654787,-417.0,9.999e-05,2]
[347973059,1736256654796,-500.0,9.999e-05,2]
[347973060,1736256654806,-1512.25,9.999e-05,2]
[347973061,1736256654815,-1334.68,9.999e-05,2]
[347973062,1736256654827,-500.0,9.999e-05,2]
[347973063,1736256654837,-500.0,9.999e-05,2]
[347973064,1736256654847,-2193.33,9.999e-05,2]
[347973065,1736256654856,-1073.65,9.999e-05,2]
[347973066,1736256654866,-2903.71,9.999e-05,2]
[347973067,1736256654875,-2159.24,9.999e-05,2]
[347973068,1736256654885,-15000.0,9.999e-05,2]
[347973069,1736256654895,-644.0,0.0001,2]
[347973070,1736256654905,-499440.14302578,0.0001,2]
[347973071,1736256655680,-683.90000001,0.0001,2]
[347973072,1736256656965,-500.83294362,9.767e-05,2]
[347973073,1736256656975,-500.67570349,9.767e-05,2]
[347973074,1736256656985,-500.0,9.768e-05,2]
[347973075,1736256656994,-2420.30715898,9.769e-05,2]
[347973076,1736256657012,-720.78284102,9.769e-05,2]
[347973077,1736256657022,-150.0,9.92e-05,2]
[347973078,1736256657034,-417.0,9.965e-05,2]
[347973079,1736256657043,-417.0,9.965e-05,2]
[347973080,1736256657057,-3351.81015898,0.0001,2]
[347973081,1736256657069,-1120.07727721,0.0001,2]
[347973082,1736256657097,-85306.0943926,0.0001,2]
[347973083,1736256657109,-218198.89412947,0.0001,2]
[347973084,1736256657155,-2018.50135938,0.0001,2]
[347973085,1736256657167,-3253.2053238,0.0001,2]
[347973086,1736256657272,-364.20448449,9.965e-05,2]
[347973087,1736256769775,10000.0,0.00012121,24]
[347973088,1736256805379,-1000.0,8.768e-05,2]
[347973089,1736256805402,-250.0,8.925e-05,2]
[347973090,1736256805423,-402.85,8.997e-05,2]
[347973091,1736256805443,-5697.95,9.03e-05,2]
[347973092,1736256805465,-23900.0,9.129e-05,2]
[347973093,1736256805486,-1000.0,9.567e-05,2]
[347973094,1736256805509,-150.292047,9.696e-05,2]
[347973095,1736256805530,-163.179629,9.696e-05,2]
[347973096,1736256805551,-500.0,9.698e-05,2]
[347973097,1736256805573,-592.63,9.698e-05,2]
[347973098,1736256805595,-500.0,9.698e-05,2]
[347973099,1736256805616,-500.0,9.698e-05,2]
[347973100,1736256805638,-500.0,9.698e-05,2]
[347973101,1736256805660,-686.33,9.698e-05,2]
[347973102,1736256805682,-6708.26,9.698e-05,2]
[347973103,1736256805703,-10491.83,9.698e-05,2]
[347973104,1736256805724,-500.0,9.698e-05,2]
[347973105,1736256805745,-500.0,9.698e-05,2]
[347973106,1736256805766,-5210.55,9.698e-05,2]
[347973107,1736256805787,-500.0,9.699e-05,2]
[347973108,1736256806089,-547.05,9.699e-05,2]
[347973109,1736256806110,-2168.8,9.699e-05,2]
[347973110,1736256806131,-500.0,9.699e-05,2]
[347973111,1736256806154,-500.0,9.699e-05,2]
[347973112,1736256806175,-875.25,9.699e-05,2]
[347973113,1736256806201,-500.0,9.699e-05,2]
[347973114,1736256806232,-1761.06,9.699e-05,2]
[347973115,1736256806263,-500.0,9.699e-05,2]
[347973116,1736256806285,-500.0,9.699e-05,2]
[347973117,1736256806305,-1068.53,9.699e-05,2]
[347973118,1736256806329,-6909.04,9.699e-05,2]
[347973119,1736256806353,-2268.7,9.699e-05,2]
[347973120,1736256806374,-500.0,9.699e-05,2]
[347973121,1736256806397,-500.0,9.699e-05,2]
[347973122,1736256806419,-556.73,9.699e-05,2]
[347973123,1736256806440,-500.0,9.699e-05,2]
[347973124,1736256806461,-500.0,9.699e-05,2]
[347973125,1736256806482,-929.45,9.699e-05,2]
[347973126,1736256806504,-7733.67,9.699e-05,2]
[347973127,1736256806525,-1794.8,9.699e-05,2]
[347973128,1736256806547,-557.32,9.699e-05,2]
[347973129,1736256806568,-714.22,9.699e-05,2]
[347973130,1736256806589,-500.0,9.699e-05,2]
[347973131,1736256806609,-506.62,9.699e-05,2]
[347973132,1736256806631,-500.0,9.699e-05,2]
[347973133,1736256806654,-3551.73,9.699e-05,2]
[347973134,1736256806675,-943.8,9.699e-05,2]
[347973135,1736256806695,-943.09,9.699e-05,2]
[347973136,1736256806715,-500.0,9.699e-05,2]
[347973137,1736256806735,-6704.72,9.699e-05,2]
[347973138,1736256806755,-517.43,9.699e-05,2]
[347973139,1736256806776,-554.9,9.699e-05,2]
[347973140,1736256806796,-2522.08,9.699e-05,2]
[347973141,1736256806817,-574.03,9.699e-05,2]
[347973142,1736256806838,-19203.09,9.699e-05,2]
[347973143,1736256806858,-500.0,9.699e-05,2]
[347973144,1736256806877,-500.0,9.699e-05,2]
[347973145,1736256806898,-500.0,9.699e-05,2]
[347973146,1736256806918,-500.0,9.699e-05,2]
[347973147,1736256806938,-500.0,9.699e-05,2]
[347973148,1736256806957,-500.0,9.699e-05,2]
[347973149,1736256806978,-1714.45,9.699e-05,2]
[347973150,1736256806997,-500.0,9.699e-05,2]
[347973151,1736256807017,-500.0,9.699e-05,2]
[347973152,1736256807038,-500.0,9.699e-05,2]
[347973153,1736256807058,-535.77,9.699e-05,2]
[347973154,1736256807078,-2253.36,9.699e-05,2]
[347973155,1736256807098,-500.0,9.699e-05,2]
[347973156,1736256807118,-500.0,9.699e-05,2]
[347973157,1736256807140,-500.0,9.699e-05,2]
[347973158,1736256807161,-666.83,9.699e-05,2]
[347973159,1736256807182,-500.0,9.699e-05,2]
[347973160,1736256807205,-500.0,9.699e-05,2]
[347973161,1736256807226,-500.0,9.699e-05,2]
[347973162,1736256807252,-2050.39,9.699e-05,2]
[347973163,1736256807274,-3459.84,9.699e-05,2]
[347973164,1736256807295,-500.0,9.699e-05,2]
[347973165,1736256807315,-500.0,9.699e-05,2]
[347973166,1736256807339,-500.0,9.699e-05,2]
[347973167,1736256807361,-500.0,9.699e-05,2]
[347973168,1736256807383,-500.0,9.699e-05,2]
[347973169,1736256807404,-1979.2,9.699e-05,2]
[347973170,1736256807425,-2421.93,9.699e-05,2]
[347973171,1736256807447,-500.0,9.699e-05,2]
[347973172,1736256807470,-500.0,9.699e-05,2]
[347973173,1736256807491,-500.0,9.699e-05,2]
[347973174,1736256807512,-500.0,9.699e-05,2]
[347973175,1736256807532,-500.0,9.699e-05,2]
[347973176,1736256807554,-6207.3,9.699e-05,2]
[347973177,1736256807577,-7759.26,9.699e-05,2]
[347973178,1736256807598,-500.0,9.699e-05,2]
[347973179,1736256807619,-793.69,9.699e-05,2]
[347973180,1736256807644,-612.42,9.699e-05,2]
[347973181,1736256807665,-500.0,9.699e-05,2]
[347973182,1736256807687,-500.0,9.699e-05,2]
[347973183,1736256807709,-1750.86,9.699e-05,2]
[347973184,1736256807730,-500.0,9.699e-05,2]
[347973185,1736256807750,-515.83,9.699e-05,2]
[347973186,1736256807771,-1019.66,9.699e-05,2]
[347973187,1736256807791,-500.0,9.699e-05,2]
[347973188,1736256807811,-151.0,9.7e-05,2]
[347973189,1736256807831,-151.0,9.7e-05,2]
[347973190,1736256807852,-202.840196,9.7e-05,2]
[347973191,1736256807872,-500.79269661,9.767e-05,2]
[347973192,1736256807894,-500.27567898,9.767e-05,2]
[347973193,1736256807915,-543.59340719,9.767e-05,2]
[347973194,1736256807937,-500.88115127,9.767e-05,2]
[347973195,1736256807957,-1856.65,9.767e-05,2]
[347973196,1736256807979,-1904.97,9.767e-05,2]
[347973197,1736256808001,-1338.86,9.767e-05,2]
[347973198,1736256808023,-5243.11,9.767e-05,2]
[347973199,1736256808044,-500.0,9.767e-05,2]
[347973200,1736256808066,-3047.26,9.767e-05,2]
[347973201,1736256808086,-500.0,9.767e-05,2]
[347973202,1736256808106,-502.30985891,9.767e-05,2]
[347973203,1736256808126,-500.0,9.767e-05,2]
[347973204,1736256808148,-1486.16,9.767e-05,2]
[347973205,1736256808169,-2075.88,9.767e-05,2]
[347973206,1736256808194,-1527.95,9.767e-05,2]
[347973207,1736256808214,-502.49831916,9.767e-05,2]
[347973208,1736256808235,-948.11,9.767e-05,2]
[347973209,1736256808259,-5898.72,9.767e-05,2]
[347973210,1736256808279,-501.61670896,9.767e-05,2]
[347973211,1736256808300,-1494.28,9.767e-05,2]
[347973212,1736256808321,-2088.85,9.767e-05,2]
[347973213,1736256808343,-1302.24,9.767e-05,2]
[347973214,1736256808364,-931.36,9.767e-05,2]
[347973215,1736256808385,-500.0,9.767e-05,2]
[347973216,1736256808406,-500.0,9.767e-05,2]
[347973217,1736256808426,-500.0,9.767e-05,2]
[347973218,1736256808448,-1493.73,9.767e-05,2]
[347973219,1736256808471,-823.53,9.767e-05,2]
[347973220,1736256808492,-1449.24,9.767e-05,2]
[347973221,1736256808512,-500.0,9.767e-05,2]
[347973222,1736256808542,-1299.9,9.767e-05,2]
[347973223,1736256808575,-1349.22,9.767e-05,2]
[347973224,1736256808596,-708.15,9.767e-05,2]
[347973225,1736256808617,-952.06,9.767e-05,2]
[347973226,1736256808639,-1163.94,9.767e-05,2]
[347973227,1736256808660,-1740.09,9.767e-05,2]
[347973228,1736256808680,-2080.6,9.767e-05,2]
[347973229,1736256808702,-500.0,9.767e-05,2]
[347973230,1736256808722,-500.0,9.768e-05,2]
[347973231,1736256808744,-1371.56,9.768e-05,2]
[347973232,1736256808764,-500.0,9.768e-05,2]
[347973233,1736256808784,-500.0,9.768e-05,2]
[347973234,1736256808804,-500.0,9.768e-05,2]
[347973235,1736256808827,-614.6,9.768e-05,2]
[347973236,1736256808848,-1254.51,9.768e-05,2]
[347973237,1736256808870,-646.45,9.768e-05,2]
[347973238,1736256808904,-1597.32,9.768e-05,2]
[347973239,1736256808941,-500.0,9.768e-05,2]
[347973240,1736256808963,-1506.03,9.768e-05,2]
[347973241,1736256808984,-578.12,9.768e-05,2]
[347973242,1736256809006,-1798.82,9.768e-05,2]
[347973243,1736256809027,-500.0,9.768e-05,2]
[347973244,1736256809048,-500.0,9.768e-05,2]
[347973245,1736256809068,-500.0,9.768e-05,2]
[347973246,1736256809088,-500.0,9.768e-05,2]
[347973247,1736256809109,-551.35,9.768e-05,2]
[347973248,1736256809129,-500.0,9.768e-05,2]
[347973249,1736256809150,-500.0,9.768e-05,2]
[347973250,1736256809170,-500.0,9.768e-05,2]
[347973251,1736256809194,-500.0,9.768e-05,2]
[347973252,1736256809215,-542.52,9.768e-05,2]
[347973253,1736256809236,-500.0,9.768e-05,2]
[347973254,1736256809258,-500.0,9.768e-05,2]
[347973255,1736256809278,-500.0,9.768e-05,2]
[347973256,1736256809299,-500.0,9.768e-05,2]
[347973257,1736256809321,-809.15,9.768e-05,2]
[347973258,1736256809343,-500.0,9.768e-05,2]
[347973259,1736256809365,-500.0,9.768e-05,2]
[347973260,1736256809387,-500.0,9.768e-05,2]
[347973261,1736256809410,-500.0,9.768e-05,2]
[347973262,1736256809430,-500.0,9.768e-05,2]
[347973263,1736256809451,-500.0,9.768e-05,2]
[347973264,1736256809472,-500.0,9.768e-05,2]
[347973265,1736256809492,-500.0,9.768e-05,2]
[347973266,1736256809513,-500.0,9.768e-05,2]
[347973267,1736256809533,-500.0,9.768e-05,2]
[347973268,1736256809554,-500.0,9.768e-05,2]
[347973269,1736256809575,-788.58,9.768e-05,2]
[347973270,1736256809596,-500.0,9.768e-05,2]
[347973271,1736256809617,-500.0,9.768e-05,2]
[347973272,1736256809640,-2861.1,9.768e-05,2]
[347973273,1736256809662,-500.0,9.768e-05,2]
[347973274,1736256809683,-538.23,9.768e-05,2]
[347973275,1736256809705,-624.07,9.768e-05,2]
[347973276,1736256809726,-500.0,9.768e-05,2]
[347973277,1736256809747,-500.0,9.768e-05,2]
[347973278,1736256809767,-500.0,9.768e-05,2]
[347973279,1736256809788,-536.56,9.768e-05,2]
[347973280,1736256809809,-500.0,9.768e-05,2]
[347973281,1736256809830,-500.0,9.769e-05,2]
[347973282,1736256809852,-2196.56,9.769e-05,2]
[347973283,1736256809875,-839.98,9.769e-05,2]
[347973284,1736256809899,-500.0,9.769e-05,2]
[347973285,1736256809921,-655.1,9.769e-05,2]
[347973286,1736256809944,-500.0,9.769e-05,2]
[347973287,1736256809965,-500.0,9.769e-05,2]
[347973288,1736256809986,-500.0,9.769e-05,2]
[347973289,1736256810007,-500.0,9.769e-05,2]
[347973290,1736256810191,-500.0,9.769e-05,2]
[347973291,1736256810260,-572.3629831,9.769e-05,2]
[347973292,1736256810283,-690.44,9.769e-05,2]
[347973293,1736256810304,-3010.21,9.769e-05,2]
[347973294,1736256810324,-500.0,9.769e-05,2]
[347973295,1736256810347,-7823.47,9.769e-05,2]
[347973296,1736256810369,-500.0,9.769e-05,2]
[347973297,1736256810394,-2836.21,9.769e-05,2]
[347973298,1736256810414,-500.0,9.769e-05,2]
[347973299,1736256810433,-500.0,9.769e-05,2]
[347973300,1736256810454,-557.65,9.769e-05,2]
[347973301,1736256810474,-2678.59,9.769e-05,2]
[347973302,1736256810495,-2371.54,9.769e-05,2]
[347973303,1736256810516,-500.0,9.77e-05,2]
[347973304,1736256810538,-16928.82,9.77e-05,2]
[347973305,1736256810559,-3351.4,9.77e-05,2]
[347973306,1736256810580,-150.292047,9.796e-05,2]
[347973307,1736256810601,-163.179629,9.796e-05,2]
[347973308,1736256811018,8453.48,9.767e-05,2]
[347973309,1736256811514,4515.51,9.698e-05,2]
[347973310,1736256812029,2100.49,9.699e-05,2]
[347973311,1736256812077,500.0,9.768e-05,2]
[347973312,1736256813374,1175.4,9.767e-05,2]
[347973313,1736256813504,993.59,9.77e-05,2]
[347973314,1736256813639,454.27804712,9.699e-05,2]
[347973315,1736256815242,150.80703047,9.768e-05,2]
[347973316,1736256815275,1245.73,9.767e-05,2]
[347973317,1736256815306,500.0,9.768e-05,2]
[347973318,1736256815351,500.0,9.699e-05,2]
[347973319,1736256815419,11595.64,9.699e-05,2]
[347973320,1736256815743,1825.6,9.699e-05,2]
[347973321,1736256817351,500.0,9.699e-05,2]
[347973322,1736256817403,500.0,9.768e-05,2]
[347973323,1736256817803,40000.0,0.00012121,24]
[347973324,1736256818792,500.0,9.699e-05,2]
[347973325,1736256819655,500.0,9.768e-05,2]
[347973326,1736256819771,500.0,9.699e-05,2]
[347973327,1736256820794,8048.91,9.698e-05,2]
[347973328,1736256821741,4368.52,9.769e-05,2]
[347973329,1736256821897,7230.76,9.768e-05,2]
[347973330,1736256821976,500.0,9.768e-05,2]
[347973331,1736256822005,1082.35,9.767e-05,2]
[347973332,1736256823730,636.70667932,9.699e-05,2]
[347973333,1736256824230,2718.03,9.769e-05,2]
[347973334,1736256826233,523.16,9.699e-05,2]
[347973335,1736256827607,1339.41,9.768e-05,2]
[347973336,1736256828421,500.0,9.699e-05,2]
[347973337,1736256829069,500.0,9.768e-05,2]
[347973338,1736256830907,500.0,9.699e-05,2]
[347973339,1736256831427,656.54,9.699e-05,2]
[347973340,1736256831583,500.0,9.767e-05,2]
[347973341,1736256833566,977.21,9.767e-05,2]
[347973342,1736256834683,2920.47,9.699e-05,2]
[347973343,1736256834763,695.06,9.767e-05,2]
[347973344,1736256835693,500.0,9.767e-05,2]
[347973345,1736256835724,547.71,9.699e-05,2]
[347973346,1736256836370,885.52,9.768e-05,2]
[347973347,1736256836422,575.33,9.768e-05,2]
[347973348,1736256837548,500.0,9.699e-05,2]
[347973349,1736256839165,1860.36,9.767e-05,2]
[347973350,1736256839253,756.86,9.767e-05,2]
[347973351,1736256839759,769.61,9.699e-05,2]
[347973352,1736256841538,535.77,9.699e-05,2]
[347973353,1736256843433,500.0,9.767e-05,2]
[347973354,1736256843508,500.0,9.767e-05,2]
[347973355,1736256845010,1424.24,9.699e-05,2]
[347973356,1736256845641,500.0,9.699e-05,2]
[347973357,1736256846203,552.13,9.768e-05,2]
[347973358,1736256847172,900.0,8.768e-05,2]
[347973359,1736256847884,997.59,9.699e-05,2]
[347973360,1736256848400,503.43,9.699e-05,2]
[347973361,1736256848539,7497.5,9.769e-05,2]
[347973362,1736256848664,500.0,9.699e-05,2]
[347973363,1736256850779,968.36,9.767e-05,2]
[347973364,1736256851815,804.41,9.699e-05,2]
[347973365,1736256852128,531.54,9.699e-05,2]
[347973366,1736256854176,673.05,9.768e-05,2]
[347973367,1736256855747,500.0,9.699e-05,2]
[347973368,1736256857099,2405.66,9.699e-05,2]
[347973369,1736256858270,500.0,9.698e-05,2]
[347973370,1736256858385,1813.17,9.767e-05,2]
[347973371,1736256859269,500.0,9.699e-05,2]
[347973372,1736256860087,515.31,9.699e-05,2]
[347973373,1736256861026,500.0,9.699e-05,2]
[347973374,1736256861462,500.0,9.767e-05,2]
[347973375,1736256861794,535.77,9.768e-05,2]
[347973376,1736256862200,603.62,9.767e-05,2]
[347973377,1736256862557,501.44668442,9.767e-05,2]
[347973378,1736256862814,538.23,9.699e-05,2]
[347973379,1736256865450,866.07,9.768e-05,2]
[347973380,1736256865515,2746.83,9.698e-05,2]
[347973381,1736256865775,500.0,9.768e-05,2]
[347973382,1736256867027,665.74,9.699e-05,2]
[347973383,1736256869253,500.0,9.699e-05,2]
[347973384,1736256869310,539.97638807,9.767e-05,2]
[347973385,1736256870691,507.32,9.699e-05,2]
[347973386,1736256871228,884.57,9.699e-05,2]
[347973387,1736256871757,4735.56,9.699e-05,2]
[347973388,1736256873799,500.0,9.698e-05,2]
[347973389,1736256874349,1247.98,9.699e-05,2]
[347973390,1736256875388,500.0,9.698e-05,2]
[347973391,1736256876494,2189.41,9.769e-05,2]
[347973392,1736256877148,1414.74,9.699e-05,2]
[347973393,1736256879518,500.0,9.699e-05,2]
[347973394,1736256879802,1420.75,9.698e-05,2]
[347973395,1736256880495,11438.87,9.767e-05,2]
[347973396,1736256882269,500.0,9.768e-05,2]
[347973397,1736256882309,2105.04,9.769e-05,2]
[347973398,1736256883555,500.0,9.699e-05,2]
[347973399,1736256883786,700.51,9.768e-05,2]
[347973400,1736256883940,2566.98,9.769e-05,2]
[347973401,1736256884354,563.48773912,9.768e-05,2]
[347973402,1736256884478,959.95,9.767e-05,2]
[347973403,1736256884927,500.0,9.699e-05,2]
[347973404,1736256885363,500.0,9.699e-05,2]
[347973405,1736256888236,5388.33,9.698e-05,2]
[347973406,1736256888522,1056.79,9.77e-05,2]
[347973407,1736256889080,1076.32,9.699e-05,2]
[347973408,1736256889925,500.0,9.768e-05,2]
[347973409,1736256890091,500.0,9.768e-05,2]
[347973410,1736256891245,500.0,9.768e-05,2]
[347973411,1736256891762,589.79,9.768e-05,2]
[347973412,1736256892487,705.95,9.767e-05,2]
[347973413,1736256893499,2388.2,9.699e-05,2]
[347973414,1736256893828,500.0,9.768e-05,2]
[347973415,1736256894245,500.0,9.699e-05,2]
[347973416,1736256894398,500.0,9.699e-05,2]
[347973417,1736256894775,500.0,9.698e-05,2]
[347973418,1736256895607,500.0,9.768e-05,2]
[347973419,1736256897101,1128.64,9.767e-05,2]
[347973420,1736256897683,500.0,9.699e-05,2]
[347973421,1736256899878,1004.65,9.768e-05,2]
[347973422,1736256901797,500.0,9.699e-05,2]
[347973423,1736256901914,1053.07,9.699e-05,2]
[347973424,1736256902951,500.0,9.699e-05,2]
[347973425,1736256903140,608.51,9.767e-05,2]
[347973426,1736256903239,500.0,9.699e-05,2]
[347973427,1736256905439,692.3,9.699e-05,2]
[347973428,1736256907394,2641.86,9.769e-05,2]
[347973429,1736256907685,500.0,9.768e-05,2]
[347973430,1736256907743,50000.0,0.00012121,24]
[347973431,1736256907843,2920.29,9.699e-05,2]
[347973432,1736256907873,500.0,9.768e-05,2]
[347973433,1736256908671,680.33,9.768e-05,2]
[347973434,1736256909810,500.0,9.768e-05,2]
[347973435,1736256911412,500.0,9.767e-05,2]
[347973436,1736256912103,2101.94,9.767e-05,2]
[347973437,1736256912268,500.0,9.699e-05,2]
[347973438,1736256914523,1920.37,9.699e-05,2]
[347973439,1736256914617,678.64,9.699e-05,2]
[347973440,1736256915466,2174.17,9.698e-05,2]
[347973441,1736256915779,500.0,9.699e-05,2]
[347973442,1736256916053,500.0,9.768e-05,2]
[347973443,1736256916455,2454.84,9.699e-05,2]
[347973444,1736256918323,709.27,9.767e-05,2]
[347973445,1736256919379,500.0,9.699e-05,2]
[347973446,1736256919896,500.0,9.767e-05,2]
[347973447,1736256920104,500.0,9.768e-05,2]
[347973448,1736256920481,500.0,9.699e-05,2]
[347973449,1736256922882,500.0,9.767e-05,2]
[347973450,1736256923040,500.0,9.699e-05,2]
[347973451,1736256923645,496.45253349,9.767e-05,2]
[347973452,1736256924162,7411.43,9.698e-05,2]
[347973453,1736256924338,500.0,9.768e-05,2]
[347973454,1736256925994,501.28449635,9.767e-05,2]
[347973455,1736256927295,500.0,9.767e-05,2]
[347973456,1736256927556,957.76,9.767e-05,2]
[347973457,1736256928671,653.52,9.699e-05,2]
[347973458,1736256928708,500.0,9.699e-05,2]
[347973459,1736256930032,954.32,9.699e-05,2]
[347973460,1736256930219,4186.5,9.769e-05,2]
[347973461,1736256930281,926.53,9.768e-05,2]
[347973462,1736256930865,500.0,9.768e-05,2]
[347973463,1736256931294,500.0,9.699e-05,2]
[347973464,1736256932982,500.0,9.699e-05,2]
[347973465,1736256933613,506.8,9.77e-05,2]
[347973466,1736256934543,500.0,9.768e-05,2]
[347973467,1736256934942,500.0,9.767e-05,2]
[347973468,1736256935538,5024.64,9.767e-05,2]
[347973469,1736256935941,517.43,9.699e-05,2]
[347973470,1736256937597,3403.74,9.698e-05,2]
[347973471,1736256937644,500.0,9.769e-05,2]
[347973472,1736256938529,500.0,9.768e-05,2]
[347973473,1736256938680,568.73621117,9.768e-05,2]
[347973474,1736256939451,1792.07,9.699e-05,2]
[347973475,1736256940479,500.0,9.767e-05,2]
[347973476,1736256941105,500.0,9.699e-05,2]
[347973477,1736256941295,3929.72,9.768e-05,2]
[347973478,1736256943463,2818.35,9.767e-05,2]
[347973479,1736256944202,689.21,9.767e-05,2]
[347973480,1736256944714,872.16,9.699e-05,2]
[347973481,1736256945616,500.0,9.768e-05,2]
[347973482,1736256946283,574.03,9.699e-05,2]
[347973483,1736256946757,8485.5,9.699e-05,2]
[347973484,1736256947613,806.72,9.699e-05,2]
[347973485,1736256948540,6425.35,9.698e-05,2]
[347973486,1736256948740,7185.1,9.769e-05,2]
[347973487,1736256948815,500.0,9.699e-05,2]
[347973488,1736256950538,500.0,9.768e-05,2]
[347973489,1736256951739,2001.81,9.767e-05,2]
[347973490,1736256952837,585.15,9.767e-05,2]
[347973491,1736256953029,500.0,9.768e-05,2]
[347973492,1736256953591,630.55,9.699e-05,2]
[347973493,1736256955302,500.0,9.699e-05,2]
[347973494,1736256956188,500.0,9.699e-05,2]
[347973495,1736256958942,500.0,9.699e-05,2]
[347973496,1736256960157,1031.13,9.768e-05,2]
[347973497,1736256960999,4800.77,9.698e-05,2]
[347973498,1736256962273,500.0,9.699e-05,2]
[347973499,1736256962539,50000.0,0.00012121,24]
[347973500,1736256964397,1129.64,9.769e-05,2]
[347973501,1736256964903,500.0,9.699e-05,2]
[347973502,1736256965056,500.0,9.768e-05,2]
[347973503,1736256965142,5652.94,9.767e-05,2]
[347973504,1736256965949,762.71,9.77e-05,2]
[347973505,1736256965979,500.0,9.768e-05,2]
[347973506,1736256967613,876.93,9.699e-05,2]
[347973507,1736256967703,500.0,9.699e-05,2]
[347973508,1736256968158,500.0,9.768e-05,2]
[347973509,1736256969436,599.86,9.768e-05,2]
[347973510,1736256969893,883.34,9.767e-05,2]
[347973511,1736256970092,500.0,9.699e-05,2]
[347973512,1736256971298,500.0,9.698e-05,2]
[347973513,1736256971850,500.0,9.699e-05,2]
[347973514,1736256972204,2782.72,9.767e-05,2]
[347973515,1736256974953,500.0,9.768e-05,2]
[347973516,1736256975028,559.81,9.699e-05,2]
[347973517,1736256975365,610.04,9.699e-05,2]
[347973518,1736256976335,537.52,9.699e-05,2]